bitfinex/quotes_BTCUSD_20250602
["timestamp","ask_amount","ask_price","bid_price","bid_amount"]
[1748877068158,0.2555071,104050.0,104040.0,0.56401706]
[1748877068385,0.24589662,104050.0,104040.0,0.58324015]
[1748877068585,0.24589662,104050.0,104040.0,0.57362874]
[1748877068764,0.24589662,104050.0,104040.0,0.58324033]
[1748877069164,0.24589662,104050.0,104040.0,0.60246314]
[1748877069394,0.24589662,104050.0,104040.0,0.59285183]
[1748877069766,0.24589662,104050.0,104040.0,0.58324033]
[1748877069966,0.2651173,104050.0,104040.0,0.60246305]
[1748877070167,0.2651173,104050.0,104040.0,0.59285183]
[1748877070408,0.06329126,104050.0,104040.0,0.61207437]
[1748877070641,0.27472778,104050.0,104040.0,0.59285156]
[1748877070992,0.27472778,104050.0,104040.0,0.58324015]
[1748877071190,0.26511758,104050.0,104040.0,0.59285156]
[1748877072182,0.06692813,104050.0,104040.0,0.60246287]
[1748877072307,0.06692813,104050.0,104040.0,0.59285156]
[1748877072511,0.01922105,104050.0,104040.0,0.60246287]
[1748877072760,0.02883181,104050.0,104040.0,0.61207363]
[1748877073003,0.01922013,104050.0,104040.0,0.61207317]
[1748877073204,0.22104691,104050.0,104040.0,0.53223375]
[1748877073409,0.25926603,104050.0,104040.0,0.56865702]
[1748877073624,0.24965564,104050.0,104040.0,0.36681168]
[1748877073833,0.24004516,104050.0,104040.0,0.36681168]
[1748877074041,0.24004516,104050.0,104040.0,0.3572]
[1748877074460,0.24004516,104050.0,104040.0,0.55904534]
[1748877074617,0.24004516,104050.0,104040.0,0.57464534]
[1748877074825,0.24004516,104050.0,104040.0,0.58425684]
[1748877075423,0.24004516,104050.0,104040.0,0.59386825]
[1748877075659,0.24965564,104050.0,104040.0,0.60347956]
[1748877075860,0.24965564,104050.0,104040.0,0.60347947]
[1748877076064,0.04782914,104050.0,104040.0,0.61309051]
[1748877076289,0.03821912,104050.0,104040.0,0.69005429]
[1748877076447,0.04782905,104050.0,104040.0,0.69005429]
[1748877076656,0.00960993,104050.0,104040.0,0.69005429]
[1748877077024,0.03858352,104060.0,104050.0,0.59354654]
[1748877077323,0.07755529,104060.0,104050.0,0.60315665]
[1748877077526,0.03858352,104060.0,104050.0,0.60315665]
[1748877077771,0.00014557,104060.0,104050.0,1.00403665]
[1748877078228,0.00314557,104060.0,104050.0,1.00403665]
[1748877078421,0.00314557,104060.0,104050.0,1.09989095]
[1748877079040,0.00114557,104060.0,104050.0,1.09989095]
[1748877079264,0.00114557,104060.0,104050.0,1.10189095]
[1748877079472,0.00014557,104060.0,104050.0,1.10189095]
[1748877079882,0.00014557,104060.0,104050.0,1.10289095]
[1748877085608,0.00014557,104060.0,104050.0,1.50624453]
[1748877086414,0.00014557,104060.0,104050.0,1.10289095]
[1748877087459,0.00906996,104060.0,104050.0,1.1120543]
[1748877087814,0.00907009,104060.0,104050.0,1.1120543]
[1748877088035,0.00014557,104060.0,104050.0,1.1720543]
[1748877088442,0.00907007,104060.0,104050.0,1.1720543]
[1748877089244,0.00014557,104060.0,104050.0,1.1720543]
[1748877089472,0.00907077,104060.0,104050.0,1.1720543]
[1748877089682,0.00014557,104060.0,104050.0,1.1720543]
[1748877090083,0.00907038,104060.0,104050.0,1.1720543]
[1748877090284,0.00907034,104060.0,104050.0,1.1720543]
[1748877090641,0.00975476,104060.0,104050.0,0.77117729]
[1748877090859,0.00014557,104060.0,104050.0,1.16265095]
[1748877091489,0.00014557,104060.0,104050.0,1.10265095]
[1748877092670,0.00014557,104060.0,104050.0,1.11183209]
[1748877092849,0.00014557,104060.0,104050.0,0.70201095]
[1748877093032,0.00014557,104060.0,104050.0,1.17179231]
[1748877094509,0.00014557,104060.0,104050.0,1.16261095]
[1748877094717,0.00014557,104060.0,104050.0,1.17179529]
[1748877095337,0.00014557,104060.0,104050.0,0.77119529]
[1748877095552,0.00014557,104060.0,104050.0,1.17167529]
[1748877096378,0.00014557,104060.0,104050.0,0.77119529]
[1748877096379,0.00975467,104060.0,104050.0,0.77119529]
[1748877096582,0.00975467,104060.0,104050.0,1.17163529]
[1748877096986,0.01936395,104060.0,104050.0,1.17163529]
[1748877097271,0.01936395,104060.0,104050.0,0.86727529]
[1748877097473,0.00975467,104060.0,104050.0,1.17163529]
[1748877097909,0.01936395,104060.0,104050.0,1.17163529]
[1748877098115,0.00975467,104060.0,104050.0,1.10245095]
[1748877098351,0.00975467,104060.0,104050.0,1.11163957]
[1748877098997,0.01936386,104060.0,104050.0,1.11163957]
[1748877099419,0.22117058,104060.0,104050.0,0.65009457]
[1748877099641,0.23078042,104060.0,104050.0,0.96448664]
[1748877099858,0.02897351,104060.0,104050.0,0.97409675]
[1748877100287,0.02897351,104060.0,104050.0,0.99089675]
[1748877100500,0.00014557,104060.0,104050.0,0.99089675]
[1748877100707,0.01936376,104060.0,104050.0,1.00779675]
[1748877101794,0.01936376,104060.0,104050.0,1.01699189]
[1748877102608,0.01936376,104060.0,104050.0,1.01699358]
[1748877103071,0.00975457,104060.0,104050.0,1.01699358]
[1748877103289,0.01936367,104060.0,104050.0,1.01699358]
[1748877104566,0.01936385,104060.0,104050.0,1.01699358]
[1748877104826,0.01936376,104060.0,104050.0,1.01699358]
[1748877105675,0.02897313,104060.0,104050.0,1.01699358]
[1748877105886,0.01936376,104060.0,104050.0,1.01699358]
[1748877106317,0.01936376,104060.0,104050.0,1.01700472]
[1748877106753,0.02897304,104060.0,104050.0,1.01700472]
[1748877107190,0.00975457,104060.0,104050.0,1.01700472]
[1748877108036,0.01936376,104060.0,104050.0,1.01700472]
[1748877109538,0.00975476,104060.0,104050.0,1.01700472]
[1748877109749,0.00014557,104060.0,104050.0,1.01700472]
[1748877110205,0.00014557,104060.0,104050.0,1.01701084]
[1748877110367,0.00975467,104060.0,104050.0,1.01701084]
[1748877110756,0.00014557,104060.0,104050.0,1.01701084]
[1748877111650,0.00975476,104060.0,104050.0,1.01701084]
[1748877111854,0.00975467,104060.0,104050.0,1.01701084]
[1748877112059,0.00975457,104060.0,104050.0,1.01701084]
[1748877113558,0.00014557,104060.0,104050.0,1.01701084]
[1748877113987,0.00014557,104060.0,104050.0,1.00779675]
[1748877114182,0.00014557,104060.0,104050.0,1.01701037]
[1748877115929,0.02897397,104060.0,104050.0,0.98315037]
[1748877116136,0.06307379,104060.0,104050.0,0.57326026]
[1748877116371,0.05346423,104060.0,104050.0,0.57365675]
[1748877117492,0.06307388,104060.0,104050.0,0.57365675]
[1748877117832,0.05346423,104060.0,104050.0,0.57365675]
[1748877118240,0.05346423,104060.0,104050.0,0.23365675]
[1748877118447,0.06307388,104060.0,104050.0,0.23365675]
[1748877118653,0.05346423,104060.0,104050.0,0.23365675]
[1748877118865,0.06307388,104060.0,104050.0,0.23365675]
[1748877119494,0.28569573,104060.0,104050.0,0.21443661]
[1748877120304,0.27608626,104060.0,104050.0,0.20482604]
[1748877120509,0.27608626,104060.0,104050.0,0.22404709]
[1748877121355,0.27608626,104060.0,104050.0,0.21443661]
[1748877121560,0.27608626,104060.0,104050.0,0.22404709]
[1748877122581,0.27608626,104060.0,104050.0,0.21443661]
[1748877123490,0.24566176,104060.0,104050.0,0.21443661]
[1748877123987,0.00975485,104060.0,104050.0,0.23365711]
[1748877124240,0.0193645,104060.0,104050.0,0.23365711]
[1748877124444,0.2307807,104060.0,104050.0,0.2336573]
[1748877124653,0.03858306,104060.0,104050.0,0.24326685]
[1748877125857,0.0481928,104060.0,104050.0,0.24326685]
[1748877126211,0.00014557,104060.0,104050.0,0.27636685]
[1748877126418,0.00014557,104060.0,104050.0,0.37222115]
[1748877126766,0.00014557,104060.0,104050.0,0.46810115]
[1748877127183,0.00014557,104060.0,104050.0,0.80810115]
[1748877127600,0.00014557,104060.0,104050.0,0.81731149]
[1748877128061,0.00014557,104060.0,104050.0,0.81731173]
[1748877129643,0.00014557,104060.0,104050.0,0.81731165]
[1748877129870,0.00014557,104060.0,104050.0,1.22066523]
[1748877130909,0.00014557,104060.0,104050.0,1.28066523]
[1748877131775,0.00014557,104060.0,104050.0,1.73426237]
[1748877131989,0.00014557,104060.0,104050.0,1.74880322]
[1748877132839,0.00014557,104060.0,104050.0,1.74680322]
[1748877133053,0.00014557,104060.0,104050.0,1.75680322]
[1748877133260,0.00014557,104060.0,104050.0,1.76180322]
[1748877133475,0.00014557,104060.0,104050.0,1.75678569]
[1748877133897,0.00114557,104060.0,104050.0,2.16278569]
[1748877134106,0.00114557,104060.0,104050.0,2.16178569]
[1748877134732,0.00114557,104060.0,104050.0,2.16478569]
[1748877135582,0.00114557,104060.0,104050.0,2.16178569]
[1748877135779,0.0061125,104070.0,104060.0,0.60996605]
[1748877136023,0.0061125,104070.0,104060.0,1.83568048]
[1748877136466,0.0061125,104070.0,104060.0,2.23568048]
[1748877136678,0.0061125,104070.0,104060.0,1.8323269]
[1748877137109,0.0071125,104070.0,104060.0,2.29268048]
[1748877137544,0.0162,104120.0,104110.0,0.22090138]
[1748877137749,0.05209337,104120.0,104110.0,0.22090156]
[1748877137956,0.1011999,104120.0,104110.0,0.22090156]
[1748877138165,0.06169693,104120.0,104110.0,0.22090156]
[1748877138377,0.08090451,104120.0,104110.0,0.21129699]
[1748877138594,0.01920942,104110.0,104100.0,0.30718174]
[1748877138806,0.06121455,104110.0,104100.0,0.3167878]
[1748877139044,0.06121418,104110.0,104100.0,0.3167878]
[1748877139250,0.06121409,104110.0,104100.0,0.3167878]
[1748877139472,0.00960457,104110.0,104100.0,0.32639311]
[1748877139690,0.01920933,104110.0,104100.0,0.32939311]
[1748877140119,0.02881427,104110.0,104100.0,0.33039311]
[1748877140322,0.03841894,104110.0,104100.0,0.33039311]
[1748877140970,0.03841904,104110.0,104100.0,0.3207878]
[1748877141171,0.03841894,104110.0,104100.0,0.3207878]
[1748877141332,0.02881409,104110.0,104100.0,0.3207878]
[1748877141768,0.01920924,104110.0,104100.0,0.3207878]
[1748877141986,0.00960439,104110.0,104100.0,0.32078724]
[1748877142185,0.10231778,104120.0,104110.0,0.22091923]
[1748877142389,0.05000938,104120.0,104110.0,0.2305239]
[1748877142589,0.06921678,104120.0,104110.0,0.2305239]
[1748877142934,0.0788208,104120.0,104110.0,0.2305239]
[1748877143123,0.1113208,104120.0,104110.0,0.2305239]
[1748877143351,0.12092584,104120.0,104110.0,0.22091933]
[1748877143532,0.31301189,104120.0,104110.0,0.22091933]
[1748877143699,0.10471733,104120.0,104110.0,0.22091933]
[1748877143901,0.30640759,104120.0,104110.0,0.22091933]
[1748877144124,0.31601189,104120.0,104110.0,0.22091933]
[1748877144508,0.31601189,104120.0,104110.0,0.21231466]
[1748877144689,0.12392584,104120.0,104110.0,0.22191942]
[1748877144915,0.29680449,104120.0,104110.0,0.001]
[1748877145116,0.29680449,104120.0,104110.0,0.21231467]
[1748877145319,0.29680449,104120.0,104110.0,0.22191952]
[1748877145726,0.29680449,104120.0,104110.0,0.23152428]
[1748877146142,0.29680449,104120.0,104110.0,0.22191952]
[1748877147703,0.05930591,104120.0,104110.0,0.23152419]
[1748877147921,0.04340591,104120.0,104110.0,0.27512876]
[1748877148123,0.05300938,104120.0,104110.0,0.27512876]
[1748877148933,0.04340591,104120.0,104110.0,0.25802876]
[1748877149138,0.06261331,104120.0,104110.0,0.24112876]
[1748877149985,0.05300947,104120.0,104110.0,0.24112876]
[1748877150184,0.06261321,104120.0,104110.0,0.24112876]
[1748877151252,0.05300947,104120.0,104110.0,0.24112876]
[1748877151383,0.05300947,104120.0,104110.0,0.25712876]
[1748877151577,0.04340591,104120.0,104110.0,0.25712876]
[1748877151897,0.05300938,104120.0,104110.0,0.27402876]
[1748877152316,0.04340591,104120.0,104110.0,0.27402876]
[1748877152885,0.00348552,104120.0,104110.0,0.36988306]
[1748877153094,0.00348552,104120.0,104110.0,0.70988306]
[1748877154255,0.00348552,104120.0,104110.0,1.11323664]
[1748877154417,0.00348552,104120.0,104110.0,1.12239111]
[1748877154856,0.00348552,104120.0,104110.0,1.12139111]
[1748877155246,0.00348552,104120.0,104110.0,0.72103753]
[1748877155448,0.00048552,104120.0,104110.0,0.72103753]
[1748877155654,0.00048552,104120.0,104110.0,0.72303753]
[1748877156986,0.00048552,104120.0,104110.0,0.76280845]
[1748877157195,0.00048552,104120.0,104110.0,1.16616203]
[1748877158067,0.00048552,104120.0,104110.0,1.22617336]
[1748877158942,0.00048552,104120.0,104110.0,1.2694477]
[1748877159640,0.00048552,104120.0,104110.0,1.26609412]
[1748877160060,0.00048552,104120.0,104110.0,1.6694477]
[1748877162044,0.00048552,104120.0,104110.0,1.66945994]
[1748877163689,0.00048552,104120.0,104110.0,1.65068551]
[1748877164144,0.00048552,104120.0,104110.0,1.25156551]
[1748877164385,0.00048552,104120.0,104110.0,1.25068551]
[1748877165795,0.00048552,104120.0,104110.0,1.65403909]
[1748877166215,0.00048552,104120.0,104110.0,1.65404132]
[1748877167612,0.00048552,104120.0,104110.0,1.66858217]
[1748877168234,0.00048552,104120.0,104110.0,1.26946217]
[1748877168460,0.00048552,104120.0,104110.0,1.26514859]
[1748877169910,0.00048552,104120.0,104110.0,1.26514864]
[1748877172006,0.00048552,104120.0,104110.0,1.66850222]
[1748877172448,0.00048552,104120.0,104110.0,0.78306338]
[1748877172636,0.00048552,104120.0,104110.0,0.75016338]
[1748877172779,0.00048552,104120.0,104110.0,0.50580338]
[1748877172780,0.03398552,104120.0,104110.0,0.50580338]
[1748877172979,0.03398552,104120.0,104110.0,0.80916338]
[1748877173238,0.00048552,104120.0,104110.0,0.74916338]
[1748877173448,0.00048552,104120.0,104110.0,0.69016338]
[1748877173657,0.00048552,104120.0,104110.0,1.08916338]
[1748877174953,0.00048552,104120.0,104110.0,1.10646338]
[1748877175625,0.00942559,104120.0,104110.0,1.12316338]
[1748877175870,0.00048552,104120.0,104110.0,1.12316338]
[1748877177264,0.00942329,104120.0,104110.0,1.12312338]
[1748877177471,0.00942332,104120.0,104110.0,1.12312338]
[1748877177678,0.00048552,104120.0,104110.0,1.12313501]
[1748877178111,0.00048552,104120.0,104110.0,1.52648859]
[1748877179179,0.00048552,104120.0,104110.0,1.12313501]
[1748877181403,0.01920223,104150.0,104140.0,0.23044056]
[1748877181613,0.01934784,104150.0,104140.0,0.23044056]
[1748877181820,0.0385499,104150.0,104140.0,0.24004237]
[1748877182039,0.0385499,104150.0,104140.0,0.23044075]
[1748877182238,0.02894855,104150.0,104140.0,0.23044075]
[1748877182443,0.0385498,104150.0,104140.0,0.23044075]
[1748877182644,0.08780355,104150.0,104140.0,0.23044075]
[1748877182848,0.24318251,104150.0,104140.0,0.22083903]
[1748877183055,0.04155026,104150.0,104140.0,0.23044111]
[1748877183276,0.04155026,104150.0,104140.0,0.24004292]
[1748877183487,0.03494891,104150.0,104140.0,0.24004292]
[1748877184099,0.0253472,104150.0,104140.0,0.24004292]
[1748877184252,0.00614561,104150.0,104140.0,0.24004292]
[1748877184464,0.01574631,104150.0,104140.0,0.24004292]
[1748877184694,0.03224631,104150.0,104140.0,0.24004292]
[1748877185084,0.0418472,104150.0,104140.0,0.24004292]
[1748877185281,0.03954561,104150.0,104140.0,0.24004292]
[1748877185493,0.04554863,104150.0,104140.0,0.33589722]
[1748877185709,0.04554863,104150.0,104140.0,0.43153722]
[1748877185932,0.04554863,104150.0,104140.0,0.44074129]
[1748877186333,0.04554863,104150.0,104140.0,0.43153722]
[1748877186545,0.04254863,104150.0,104140.0,0.43153722]
[1748877186733,0.00014561,104150.0,104140.0,0.89080424]
[1748877186949,0.00214561,104150.0,104140.0,0.89080424]
[1748877188457,0.00214561,104150.0,104140.0,1.29415782]
[1748877188647,0.00114561,104150.0,104140.0,1.29415782]
[1748877188843,0.00114561,104150.0,104140.0,1.29515782]
[1748877189069,0.00114561,104150.0,104140.0,0.93065072]
[1748877189256,0.00014561,104150.0,104140.0,0.93064355]
[1748877189413,0.00014561,104150.0,104140.0,1.33299713]
[1748877189825,0.00014561,104150.0,104140.0,1.73299713]
[1748877190034,0.00014561,104150.0,104140.0,1.73499713]
[1748877190291,0.00014561,104150.0,104140.0,1.33499713]
[1748877190624,0.00014561,104150.0,104140.0,0.93364355]
[1748877190865,0.00014561,104150.0,104140.0,1.33364355]
[1748877192586,0.00014561,104150.0,104140.0,1.73699713]
[1748877193143,0.00014561,104150.0,104140.0,1.72780106]
[1748877193924,0.00014561,104150.0,104140.0,1.33362841]
[1748877197090,0.00014561,104150.0,104140.0,1.56887856]
[1748877197293,0.00014561,104150.0,104140.0,1.55969763]
[1748877198029,0.00014561,104150.0,104140.0,1.55949763]
[1748877200081,0.00014561,104150.0,104140.0,1.96285121]
[1748877200282,0.00014561,104150.0,104140.0,1.97739206]
[1748877200684,0.00014561,104150.0,104140.0,1.97738799]
[1748877201127,0.00014561,104150.0,104140.0,1.98738799]
[1748877201340,0.00014561,104150.0,104140.0,2.06435177]
[1748877201501,0.00014561,104150.0,104140.0,1.66099819]
[1748877201706,0.00014561,104150.0,104140.0,2.12435177]
[1748877201940,0.00014561,104150.0,104140.0,1.71899819]
[1748877202273,0.00014561,104150.0,104140.0,2.12335177]
[1748877202474,0.00014561,104150.0,104140.0,2.12735177]
[1748877204521,0.00014561,104150.0,104140.0,2.1273488]
[1748877206510,0.00014561,104150.0,104140.0,1.8243088]
[1748877206805,0.00014561,104150.0,104140.0,2.1271888]
[1748877207009,0.00014561,104150.0,104140.0,2.4197888]
[1748877207628,0.00014561,104150.0,104140.0,2.41979311]
[1748877207857,0.00014561,104150.0,104140.0,2.41975311]
[1748877208484,0.00014561,104150.0,104140.0,2.34279029]
[1748877208717,0.00014561,104150.0,104140.0,1.94451029]
[1748877208929,0.00014561,104150.0,104140.0,2.34279029]
[1748877209982,0.00014561,104150.0,104140.0,1.93943671]
[1748877210200,0.00014561,104150.0,104140.0,2.34279029]
[1748877212171,0.00014561,104150.0,104140.0,2.37160529]
[1748877213434,0.00014561,104150.0,104140.0,2.12901288]
[1748877213882,0.07049462,104190.0,104180.0,0.56077061]
[1748877214118,0.07064007,104190.0,104180.0,0.75202491]
[1748877214343,0.07064007,104190.0,104180.0,0.76120601]
[1748877214344,0.00014545,104190.0,104180.0,0.76120601]
[1748877214787,0.00908284,104190.0,104180.0,0.76120601]
[1748877215014,0.00908262,104190.0,104180.0,0.77790601]
[1748877215232,0.00014545,104190.0,104180.0,1.21300044]
[1748877216294,0.00114545,104190.0,104180.0,1.21300044]
[1748877216479,0.00014545,104190.0,104180.0,1.21300044]
[1748877216689,0.00014545,104190.0,104180.0,1.21299754]
[1748877216933,0.00014545,104190.0,104180.0,1.21399754]
[1748877217136,0.00614545,104190.0,104180.0,1.21399754]
[1748877217561,0.00014545,104190.0,104180.0,1.30096132]
[1748877217779,0.00114545,104190.0,104180.0,1.30096132]
[1748877218210,0.00114545,104190.0,104180.0,1.70096132]
[1748877218435,0.00014545,104200.0,104190.0,1.01204386]
[1748877218639,0.00014545,104200.0,104190.0,1.11707636]
[1748877219064,0.00014545,104200.0,104190.0,1.51707636]
[1748877219689,0.00014545,104200.0,104190.0,1.54582796]
[1748877220308,0.00314545,104200.0,104190.0,1.54582796]
[1748877221148,0.00314545,104200.0,104190.0,1.55582796]
[1748877221357,0.00314545,104200.0,104190.0,1.95918154]
[1748877221358,0.00014545,104200.0,104190.0,1.95918154]
[1748877221986,0.00014545,104200.0,104190.0,2.01118154]
[1748877222190,0.00114545,104200.0,104190.0,2.00918154]
[1748877222611,0.00114545,104200.0,104190.0,2.01418154]
[1748877223244,0.05869567,104250.0,104240.0,0.02877862]
[1748877223245,0.02,104250.0,104240.0,0.02877862]
[1748877223468,0.02,104250.0,104240.0,1.05673564]
[1748877223732,0.02048504,104250.0,104240.0,1.47339142]
[1748877223953,0.02048504,104250.0,104240.0,1.95293]
[1748877224187,0.02048504,104250.0,104240.0,1.96293]
[1748877224403,0.02048504,104250.0,104240.0,2.41628358]
[1748877224837,0.02248504,104250.0,104240.0,2.01293]
[1748877225068,0.02548504,104250.0,104240.0,2.01293]
[1748877225272,0.02048504,104250.0,104240.0,2.11107772]
[1748877225479,0.02048504,104250.0,104240.0,2.11503772]
[1748877225697,0.02048504,104250.0,104240.0,2.11803772]
[1748877225910,0.02048504,104250.0,104240.0,1.30393642]
[1748877226121,0.04447167,104290.0,104240.0,1.30393642]
[1748877226122,0.05889792,104290.0,104280.0,0.22055891]
[1748877226361,0.04945492,104290.0,104280.0,0.31571891]
[1748877226579,0.297856,104290.0,104280.0,0.21096999]
[1748877226801,0.31629845,104290.0,104280.0,0.31571909]
[1748877226989,0.3074452,104290.0,104280.0,0.3253081]
[1748877227216,0.02668883,104280.0,104270.0,0.30613323]
[1748877227425,0.03627793,104280.0,104270.0,0.31572353]
[1748877227633,0.04513049,104280.0,104270.0,0.22056353]
[1748877227842,0.02668883,104280.0,104270.0,0.31572353]
[1748877228058,0.0171,104280.0,104270.0,0.41157783]
[1748877228479,0.06643098,104290.0,104280.0,0.22055891]
[1748877229108,0.06643098,104290.0,104280.0,0.31641321]
[1748877229540,0.06943098,104290.0,104280.0,0.31641321]
[1748877229954,0.08860688,104290.0,104280.0,0.31641321]
[1748877230200,0.07901879,104290.0,104280.0,0.31641321]
[1748877230402,0.05181363,104290.0,104280.0,0.31641321]
[1748877230618,0.03263791,104290.0,104280.0,0.31641321]
[1748877231045,0.01683791,104290.0,104280.0,0.31641321]
[1748877231286,0.01683791,104290.0,104280.0,0.95885321]
[1748877231504,0.02569646,104290.0,104280.0,1.14697699]
[1748877231716,0.01683791,104290.0,104280.0,1.17741784]
[1748877231938,0.01683791,104290.0,104280.0,0.75157321]
[1748877232147,0.01683791,104290.0,104280.0,1.05401321]
[1748877232360,0.01383791,104290.0,104280.0,1.05401321]
[1748877232567,0.02269736,104290.0,104280.0,1.05401321]
[1748877232774,0.02369748,104290.0,104280.0,1.05401321]
[1748877232978,0.01483791,104290.0,104280.0,1.05401321]
[1748877233413,0.01283791,104290.0,104280.0,1.05401321]
[1748877233618,0.01383791,104290.0,104280.0,1.05401321]
[1748877233903,0.01283791,104290.0,104280.0,1.05401321]
[1748877234352,0.01383791,104290.0,104280.0,1.05401321]
[1748877235858,0.01383791,104290.0,104280.0,0.65641321]
[1748877236066,0.01383791,104290.0,104280.0,1.05417321]
[1748877236280,0.01383791,104290.0,104280.0,0.75153321]
[1748877238825,0.01383791,104290.0,104280.0,1.05461321]
[1748877239250,0.01383791,104290.0,104280.0,0.65641321]
[1748877239458,0.01383791,104290.0,104280.0,1.05457321]
[1748877240713,0.01383791,104290.0,104280.0,1.05469321]
[1748877242017,0.01383791,104290.0,104280.0,1.05453321]
[1748877242226,0.01383791,104290.0,104280.0,0.81153321]
[1748877242440,0.02943791,104290.0,104280.0,0.81153321]
[1748877242890,0.02943791,104290.0,104280.0,0.82063651]
[1748877243109,0.01383791,104290.0,104280.0,0.82063651]
[1748877244624,0.01383791,104290.0,104280.0,0.82065133]
[1748877245059,0.03563791,104290.0,104280.0,0.36682429]
[1748877245316,0.07399082,104290.0,104280.0,0.27097018]
[1748877245538,0.05481381,104290.0,104280.0,0.29014829]
[1748877245976,0.07399054,104290.0,104280.0,0.28055937]
[1748877246191,0.06340208,104290.0,104280.0,0.29973739]
[1748877246414,0.06440208,104290.0,104280.0,0.29973739]
[1748877246638,0.06740208,104290.0,104280.0,0.29973739]
[1748877246853,0.10696728,104290.0,104280.0,0.29014847]
[1748877247066,0.27956423,104290.0,104280.0,0.25179133]
[1748877247478,0.27956423,104290.0,104280.0,0.20138089]
[1748877247680,0.27956423,104290.0,104280.0,0.19179133]
[1748877247916,0.27956423,104290.0,104280.0,0.21097036]
[1748877248125,0.05781464,104290.0,104280.0,0.23014903]
[1748877248341,0.24958758,104290.0,104280.0,0.23014903]
[1748877248549,0.03178929,104280.0,104270.0,0.29650339]
[1748877248759,0.05096786,104280.0,104270.0,0.22056389]
[1748877248968,0.05096703,104280.0,104270.0,0.23015373]
[1748877249208,0.06475852,104280.0,104270.0,0.23015373]
[1748877249419,0.05096684,104280.0,104270.0,0.23015373]
[1748877249830,0.0701455,104280.0,104270.0,0.23015382]
[1748877250036,0.0701455,104280.0,104270.0,0.23974366]
[1748877250246,0.05136979,104270.0,104260.0,0.2687602]
[1748877250490,0.2527699,104270.0,104260.0,0.08612079]
[1748877250701,0.25279207,104260.0,104250.0,0.31648969]
[1748877250918,0.25279207,104260.0,104250.0,0.32564783]
[1748877251132,0.06096395,104260.0,104250.0,0.23932594]
[1748877251344,0.06096377,104260.0,104250.0,0.23975314]
[1748877251978,0.27132508,104260.0,104250.0,0.23932332]
[1748877252202,0.06096451,104260.0,104250.0,0.23932305]
[1748877252422,0.2617348,104260.0,104250.0,0.22973137]
[1748877252636,0.09802799,104260.0,104250.0,0.23932314]
[1748877252854,0.28191397,104260.0,104250.0,0.21097783]
[1748877253075,0.04537559,104250.0,104240.0,0.6472001]
[1748877253287,0.04537559,104250.0,104240.0,0.08613296]
[1748877253288,0.24302321,104250.0,104240.0,0.08613296]
[1748877253520,0.24302321,104250.0,104240.0,0.27842176]
[1748877253724,0.24302321,104250.0,104240.0,0.28801473]
[1748877253933,0.27084091,104250.0,104240.0,0.28801473]
[1748877254151,0.24302321,104250.0,104240.0,0.2976076]
[1748877254387,0.25210935,104250.0,104240.0,0.2976076]
[1748877254602,0.2431686,104250.0,104240.0,0.2976076]
[1748877255024,0.25210953,104250.0,104240.0,0.2976076]
[1748877255236,0.2431686,104250.0,104240.0,0.30720038]
[1748877255452,0.24251805,104250.0,104240.0,0.31679307]
[1748877255732,0.2431686,104250.0,104240.0,0.2976076]
[1748877255945,0.2441686,104250.0,104240.0,0.30720038]
[1748877256190,0.23457591,104250.0,104240.0,0.31679298]
[1748877256413,0.04752162,104250.0,104240.0,0.31679298]
[1748877256628,0.24896046,104250.0,104240.0,0.31679298]
[1748877256837,0.25496046,104250.0,104240.0,0.30720038]
[1748877257054,0.05352162,104250.0,104240.0,0.30720038]
[1748877257265,0.05352162,104250.0,104240.0,0.31679298]
[1748877257474,0.25496046,104250.0,104240.0,0.2976076]
[1748877257676,0.25496046,104250.0,104240.0,0.31679307]
[1748877257891,0.25496046,104250.0,104240.0,0.31679261]
[1748877258729,0.06311394,104250.0,104240.0,0.31679261]
[1748877258934,0.24896046,104250.0,104240.0,0.21105076]
[1748877259145,0.04752098,104250.0,104240.0,0.23023605]
[1748877259971,0.00214539,104250.0,104240.0,0.23023605]
[1748877260176,0.02132902,104250.0,104240.0,0.23023605]
[1748877260391,0.04822116,104250.0,104240.0,0.23023605]
[1748877260597,0.03862902,104250.0,104240.0,0.23023605]
[1748877260808,0.04822116,104250.0,104240.0,0.23023605]
[1748877261012,0.03862902,104250.0,104240.0,0.23023605]
[1748877261218,0.24965991,104250.0,104240.0,0.23023605]
[1748877261427,0.05781339,104250.0,104240.0,0.23023605]
[1748877261835,0.04822116,104250.0,104240.0,0.23023605]
[1748877262062,0.10697378,104250.0,104240.0,0.23023605]
[1748877262269,0.05781339,104250.0,104240.0,0.23023605]
[1748877262689,0.03862902,104250.0,104240.0,0.23023605]
[1748877262905,0.04822116,104250.0,104240.0,0.23023605]
[1748877264181,0.24006768,104250.0,104240.0,0.23023605]
[1748877264351,0.24965991,104250.0,104240.0,0.23023605]
[1748877264568,0.05781339,104250.0,104240.0,0.23023605]
[1748877265442,0.06676147,104250.0,104240.0,0.23023605]
[1748877265647,0.05781339,104250.0,104240.0,0.23023605]
[1748877265855,0.03092116,104250.0,104240.0,0.23023605]
[1748877266960,0.23235991,104250.0,104240.0,0.23023605]
[1748877267170,0.25090032,104250.0,104240.0,0.23023605]
[1748877267422,0.24195223,104250.0,104240.0,0.23023605]
[1748877267643,0.2227686,104250.0,104240.0,0.21105113]
[1748877267880,0.2390686,104250.0,104240.0,0.21105113]
[1748877268089,0.31932534,104250.0,104240.0,0.220644]
[1748877268337,0.11724232,104250.0,104240.0,0.2302366]
[1748877268549,0.03698561,104250.0,104240.0,0.2302366]
[1748877268767,0.04722143,104250.0,104240.0,0.2302366]
[1748877268978,0.04051293,104250.0,104240.0,0.2302366]
[1748877269196,0.01109393,104250.0,104240.0,0.34080038]
[1748877269416,0.00214539,104250.0,104240.0,0.87261468]
[1748877269629,0.0110952,104250.0,104240.0,0.87261468]
[1748877270051,0.00214539,104250.0,104240.0,1.17645468]
[1748877270682,0.00214539,104250.0,104240.0,1.1594909]
[1748877271100,0.01109543,104250.0,104240.0,1.1594909]
[1748877272134,0.01109534,104250.0,104240.0,1.1594909]
[1748877272358,0.01173688,104250.0,104240.0,1.1594909]
[1748877272571,0.02132865,104250.0,104240.0,0.8385509]
[1748877273191,0.02132856,104250.0,104240.0,0.8385509]
[1748877273824,0.04051256,104250.0,104240.0,0.8385509]
[1748877274035,0.03986952,104250.0,104240.0,0.8385509]
[1748877274261,0.25466932,104250.0,104240.0,0.26145816]
[1748877274464,0.22212403,104250.0,104240.0,0.280644]
[1748877274675,0.22212403,104250.0,104240.0,0.30713706]
[1748877274676,0.23171618,104250.0,104240.0,0.30713706]
[1748877274886,0.03027703,104250.0,104240.0,0.31672966]
[1748877275099,0.03986919,104250.0,104240.0,0.31672966]
[1748877275315,0.24130796,104250.0,104240.0,0.31672966]
[1748877275532,0.04946144,104250.0,104240.0,0.31672966]
[1748877275980,0.24130796,104250.0,104240.0,0.31672966]
[1748877276187,0.04051339,104250.0,104240.0,0.31672966]
[1748877276396,0.04946157,104250.0,104240.0,0.31672966]
[1748877276603,0.01173707,104250.0,104240.0,0.31672966]
[1748877276816,0.03092089,104250.0,104240.0,0.33302966]
[1748877277227,0.03986913,104250.0,104240.0,0.33302966]
[1748877277403,0.03986916,104250.0,104240.0,0.33302966]
[1748877277614,0.02132884,104250.0,104240.0,0.33302966]
[1748877277821,0.04946102,104250.0,104240.0,0.33302966]